lending/lending_fUSD_20250122
["ID","MTS","AMOUNT","RATE_DAILY","PERIOD"]
[350009947,1737564651650,-668.03,0.00019726,2]
[350009948,1737564651665,-933.97,0.00019726,2]
[350009949,1737564651679,-1396.54,0.00019726,2]
[350009950,1737564651694,-500.0,0.00019726,2]
[350009951,1737564651709,-2807.04,0.00019726,2]
[350009952,1737564651725,-640.64,0.00019726,2]
[350009953,1737564651738,-428.80195845,0.00019726,2]
[350009954,1737564651754,-861.9,0.00019726,2]
[350009955,1737564651769,-506.33888961,0.00019726,2]
[350009956,1737564651788,-236.48111039,0.00019726,2]
[350009957,1737564651800,-278.71888961,0.00019726,2]
[350009958,1737564651944,-221.28111039,0.00019726,2]
[350009959,1737564651957,-2622.27,0.00019726,2]
[350009960,1737564651969,-500.0,0.00019726,2]
[350009961,1737564651981,-1147.71,0.00019726,2]
[350009962,1737564651994,-500.0,0.00019726,2]
[350009963,1737564652006,-500.0,0.00019726,2]
[350009964,1737564652019,-1397.58,0.00019726,2]
[350009965,1737564652031,-644.84,0.00019726,2]
[350009966,1737564652044,-500.0,0.00019726,2]
[350009967,1737564652056,-500.0,0.00019726,2]
[350009968,1737564652070,-500.0,0.00019726,2]
[350009969,1737564652082,-500.0,0.00019726,2]
[350009970,1737564652095,-1969.95,0.00019726,2]
[350009971,1737564652107,-1623.55,0.00019726,2]
[350009972,1737564652120,-1125.49,0.00019726,2]
[350009973,1737564652132,-500.0,0.00019726,2]
[350009974,1737564652145,-988.97,0.00019726,2]
[350009975,1737564652157,-500.0,0.00019726,2]
[350009976,1737564652169,-1383.41,0.00019726,2]
[350009977,1737564652182,-3375.42,0.00019726,2]
[350009978,1737564652195,-933.59,0.00019726,2]
[350009979,1737564652208,-500.0,0.00019726,2]
[350009980,1737564652221,-674.84,0.00019726,2]
[350009981,1737564652233,-788.35,0.00019726,2]
[350009982,1737564652246,-2196.11,0.00019726,2]
[350009983,1737564652258,-1102.3,0.00019726,2]
[350009984,1737564652270,-802.14,0.00019726,2]
[350009985,1737564652283,-500.0,0.00019726,2]
[350009986,1737564652296,-2637.93,0.00019726,2]
[350009987,1737564652308,-1505.78,0.00019726,2]
[350009988,1737564652322,-500.0,0.00019726,2]
[350009989,1737564652334,-500.0,0.00019726,2]
[350009990,1737564652347,-500.0,0.00019726,2]
[350009991,1737564652359,-994.03,0.00019726,2]
[350009992,1737564652371,-637.51,0.00019726,2]
[350009993,1737564652384,-866.11,0.00019726,2]
[350009994,1737564652396,-524.7,0.00019726,2]
[350009995,1737564652409,-500.0,0.00019726,2]
[350009996,1737564652421,-500.0,0.00019726,2]
[350009997,1737564652434,-709.66,0.00019726,2]
[350009998,1737564652448,-500.0,0.00019726,2]
[350009999,1737564652459,-500.0,0.00019726,2]
[350010000,1737564652468,-1296.18,0.00019726,2]
[350010001,1737564652477,-1221.77,0.00019726,2]
[350010002,1737564652486,-500.0,0.00019726,2]
[350010003,1737564652496,-1308.26,0.00019726,2]
[350010004,1737564652505,-1266.64,0.00019726,2]
[350010005,1737564652514,-500.0,0.00019726,2]
[350010006,1737564652523,-933.28,0.00019726,2]
[350010007,1737564652532,-500.0,0.00019726,2]
[350010008,1737564652541,-500.0,0.00019726,2]
[350010009,1737564652550,-2952.64,0.00019726,2]
[350010010,1737564652559,-929.73,0.00019726,2]
[350010011,1737564652569,-500.0,0.00019726,2]
[350010012,1737564652579,-817.08,0.00019726,2]
[350010013,1737564652588,-522.56,0.00019726,2]
[350010014,1737564652597,-1594.75,0.00019726,2]
[350010015,1737564652607,-500.0,0.00019726,2]
[350010016,1737564652615,-500.0,0.00019726,2]
[350010017,1737564652626,-500.0,0.00019726,2]
[350010018,1737564652635,-575.95348267,0.00019726,2]
[350010019,1737564652644,-1319.68,0.00019726,2]
[350010020,1737564652653,-500.0,0.00019726,2]
[350010021,1737564652662,-943.47,0.00019726,2]
[350010022,1737564652671,-529.41056925,0.00019726,2]
[350010023,1737564652681,-556.38,0.00019726,2]
[350010024,1737564652690,-178.26374899,0.00019726,2]
[350010025,1737564652699,-979.95,0.00019726,2]
[350010026,1737564652708,-2180.0,0.00019726,2]
[350010027,1737564652718,-500.0,0.00019726,2]
[350010028,1737564652727,-500.0,0.00019726,2]
[350010029,1737564652737,-500.0,0.00019726,2]
[350010030,1737564652746,-599.54,0.00019726,2]
[350010031,1737564652756,-506.05,0.00019726,2]
[350010032,1737564652765,-703.23,0.00019726,2]
[350010033,1737564652774,-616.56,0.00019726,2]
[350010034,1737564652784,-1469.11,0.00019726,2]
[350010035,1737564652793,-500.0,0.00019726,2]
[350010036,1737564652802,-500.0,0.00019726,2]
[350010037,1737564653155,-500.0,0.00019726,2]
[350010038,1737564653184,-500.0,0.00019726,2]
[350010039,1737564653201,-500.0,0.00019726,2]
[350010040,1737564653210,-500.0,0.00019726,2]
[350010041,1737564653230,-1622.79,0.00019726,2]
[350010042,1737564653239,-563.14,0.00019726,2]
[350010043,1737564653249,-500.0,0.00019726,2]
[350010044,1737564653258,-2613.81,0.00019726,2]
[350010045,1737564653267,-904.26,0.00019726,2]
[350010046,1737564653277,-500.0,0.00019726,2]
[350010047,1737564653286,-548.46,0.00019726,2]
[350010048,1737564653296,-500.0,0.00019726,2]
[350010049,1737564653305,-931.41,0.00019726,2]
[350010050,1737564653316,-2218.6,0.00019726,2]
[350010051,1737564653326,-582.87467083,0.00019728,2]
[350010052,1737564653335,-582.87467083,0.00019831,2]
[350010053,1737564653345,-156.29628643,0.000199,2]
[350010054,1737564653355,-582.87467083,0.00019934,2]
[350010055,1737564653365,-222.2,0.00019958,2]
[350010056,1737564653374,-150.0,0.00019977,2]
[350010057,1737564653383,-150.0,0.00019978,2]
[350010058,1737564653393,-150.0,0.00019987,2]
[350010059,1737564653403,-500.0,0.00019999,2]
[350010060,1737564653413,-500.0,0.00019999,2]
[350010061,1737564653423,-799.87,0.00019999,2]
[350010062,1737564653432,-758.88,0.00019999,2]
[350010063,1737564653442,-600.73,0.00019999,2]
[350010064,1737564653451,-1289.84,0.00019999,2]
[350010065,1737564653462,-1179.31,0.00019999,2]
[350010066,1737564653472,-2520.38,0.00019999,2]
[350010067,1737564653481,-5054.1,0.00019999,2]
[350010068,1737564653491,-876.86,0.00019999,2]
[350010069,1737564653502,-877.46,0.00019999,2]
[350010070,1737564653512,-1948.77,0.00019999,2]
[350010071,1737564653521,-500.0,0.00019999,2]
[350010072,1737564653532,-895.62,0.00019999,2]
[350010073,1737564653542,-1024.02,0.00019999,2]
[350010074,1737564653551,-1159.37,0.00019999,2]
[350010075,1737564653560,-500.0,0.00019999,2]
[350010076,1737564653572,-1000.0,0.00019999,2]
[350010077,1737564653581,-1054.44,0.00019999,2]
[350010078,1737564653591,-500.0,0.00019999,2]
[350010079,1737564653601,-1729.24,0.00019999,2]
[350010080,1737564653610,-500.0,0.0002,2]
[350010081,1737564653620,-500.0,0.0002,2]
[350010082,1737564653630,-500.0,0.0002,2]
[350010083,1737564653639,-500.0,0.0002,2]
[350010084,1737564653649,-251.82601275,0.0002,2]
[350010085,1737564653659,-500.0,0.0002,2]
[350010086,1737564653669,-500.0,0.0002,2]
[350010087,1737564653679,-500.0,0.0002,2]
[350010088,1737564653689,-500.0,0.0002,2]
[350010089,1737564653699,-503.59744126,0.0002,2]
[350010090,1737564653709,-500.0,0.0002,2]
[350010091,1737564653719,-500.0,0.0002,2]
[350010092,1737564653728,-500.0,0.0002,2]
[350010093,1737564653738,-700.16,0.0002,2]
[350010094,1737564653748,-653.57,0.0002,2]
[350010095,1737564653757,-500.0,0.0002,2]
[350010096,1737564653766,-500.0,0.0002,2]
[350010097,1737564653776,-501.2,0.0002,2]
[350010098,1737564653785,-227.00890578,0.0002,2]
[350010099,1737564653794,-578.29,0.0002,2]
[350010100,1737564653804,-815.2,0.0002,2]
[350010101,1737564653814,-500.0,0.0002,2]
[350010102,1737564653826,-500.0,0.0002,2]
[350010103,1737564653835,-500.0,0.0002,2]
[350010104,1737564653845,-500.0,0.0002,2]
[350010105,1737564653854,-500.0,0.0002,2]
[350010106,1737564653863,-500.0,0.0002,2]
[350010107,1737564653873,-500.0,0.0002,2]
[350010108,1737564653885,-500.0,0.0002,2]
[350010109,1737564653895,-597.93,0.0002,2]
[350010110,1737564653904,-500.0,0.0002,2]
[350010111,1737564653914,-568.16,0.0002,2]
[350010112,1737564653923,-500.0,0.0002,2]
[350010113,1737564653933,-500.0,0.0002,2]
[350010114,1737564653942,-500.0,0.0002,2]
[350010115,1737564653952,-500.0,0.0002,2]
[350010116,1737564653961,-693.59,0.0002,2]
[350010117,1737564653970,-774.01,0.0002,2]
[350010118,1737564653980,-500.0,0.0002,2]
[350010119,1737564653989,-500.0,0.0002,2]
[350010120,1737564653998,-500.0,0.0002,2]
[350010121,1737564654008,-678.729105,0.0002,2]
[350010122,1737564654017,-500.0,0.0002,2]
[350010123,1737564654026,-643.99,0.0002,2]
[350010124,1737564654036,-500.0,0.0002,2]
[350010125,1737564654045,-500.0,0.0002,2]
[350010126,1737564654054,-500.0,0.0002,2]
[350010127,1737564654063,-500.0,0.0002,2]
[350010128,1737564654077,-500.0,0.0002,2]
[350010129,1737564654086,-921.053606,0.0002,2]
[350010130,1737564654095,-500.0,0.0002,2]
[350010131,1737564654105,-500.0,0.0002,2]
[350010132,1737564654114,-500.0,0.0002,2]
[350010133,1737564654124,-513.35261154,0.0002,2]
[350010134,1737564654133,-530.18,0.0002,2]
[350010135,1737564654144,-500.0,0.0002,2]
[350010136,1737564654154,-500.0,0.0002,2]
[350010137,1737564654164,-500.0,0.0002,2]
[350010138,1737564654173,-500.0,0.0002,2]
[350010139,1737564654182,-500.0,0.0002,2]
[350010140,1737564654191,-500.0,0.0002,2]
[350010141,1737564654201,-500.0,0.0002,2]
[350010142,1737564654210,-500.0,0.0002,2]
[350010143,1737564654220,-500.0,0.0002,2]
[350010144,1737564654229,-500.0,0.0002,2]
[350010145,1737564654239,-500.0,0.0002,2]
[350010146,1737564654248,-855.78,0.0002,2]
[350010147,1737564654258,-500.0,0.0002,2]
[350010148,1737564654267,-709.74,0.0002,2]
[350010149,1737564654277,-500.0,0.0002,2]
[350010150,1737564654286,-500.0,0.0002,2]
[350010151,1737564654296,-500.0,0.0002,2]
[350010152,1737564654306,-826.55,0.0002,2]
[350010153,1737564654319,-500.0,0.0002,2]
[350010154,1737564654328,-500.0,0.0002,2]
[350010155,1737564654338,-500.0,0.0002,2]
[350010156,1737564654348,-500.0,0.0002,2]
[350010157,1737564654358,-662.96,0.0002,2]
[350010158,1737564654368,-679.12,0.0002,2]
[350010159,1737564654377,-500.0,0.0002,2]
[350010160,1737564654387,-500.0,0.0002,2]
[350010161,1737564654396,-500.0,0.0002,2]
[350010162,1737564654405,-512.16,0.0002,2]
[350010163,1737564654415,-500.0,0.0002,2]
[350010164,1737564654424,-1005.12,0.0002,2]
[350010165,1737564654434,-500.0,0.0002,2]
[350010166,1737564654443,-500.0,0.0002,2]
[350010167,1737564654453,-500.0,0.0002,2]
[350010168,1737564654462,-698.09,0.0002,2]
[350010169,1737564654471,-628.59,0.0002,2]
[350010170,1737564654480,-539.62,0.0002,2]
[350010171,1737564654489,-500.0,0.0002,2]
[350010172,1737564654499,-500.0,0.0002,2]
[350010173,1737564654509,-500.0,0.0002,2]
[350010174,1737564654518,-740.64,0.0002,2]
[350010175,1737564654528,-500.0,0.0002,2]
[350010176,1737564654537,-960.26,0.0002,2]
[350010177,1737564654546,-932.4,0.0002,2]
[350010178,1737564654555,-776.07,0.0002,2]
[350010179,1737564654565,-500.0,0.0002,2]
[350010180,1737564654576,-500.0,0.0002,2]
[350010181,1737564654585,-500.0,0.0002,2]
[350010182,1737564654594,-880.8,0.0002,2]
[350010183,1737564654604,-500.0,0.0002,2]
[350010184,1737564654613,-427.21075865,0.0002,2]
[350010185,1737564654622,-500.0,0.0002,2]
[350010186,1737564654631,-500.0,0.0002,2]
[350010187,1737564654640,-827.35,0.0002,2]
[350010188,1737564654649,-984.49,0.0002,2]
[350010189,1737564654659,-276.24999539,0.0002,2]
[350010190,1737564654669,-675.84,0.0002,2]
[350010191,1737564654678,-624.4,0.0002,2]
[350010192,1737564654687,-533.95,0.0002,2]
[350010193,1737564654696,-500.0,0.0002,2]
[350010194,1737564654705,-798.72,0.0002,2]
[350010195,1737564654714,-851.17,0.0002,2]
[350010196,1737564654724,-754.56,0.0002,2]
[350010197,1737564654733,-500.0,0.0002,2]
[350010198,1737564654747,-500.0,0.0002,2]
[350010199,1737564654756,-940.6,0.0002,2]
[350010200,1737564654766,-500.0,0.0002,2]
[350010201,1737564654775,-937.01,0.0002,2]
[350010202,1737564654785,-1249.64,0.0002,2]
[350010203,1737564654795,-500.0,0.0002,2]
[350010204,1737564654805,-500.0,0.0002,2]
[350010205,1737564654815,-500.0,0.0002,2]
[350010206,1737564654827,-500.0,0.0002,2]
[350010207,1737564654836,-1662.37,0.0002,2]
[350010208,1737564654846,-557.94,0.0002,2]
[350010209,1737564654855,-659.97,0.0002,2]
[350010210,1737564654865,-1189.42,0.0002,2]
[350010211,1737564654874,-1115.66,0.0002,2]
[350010212,1737564654886,-500.0,0.0002,2]
[350010213,1737564654895,-897.56,0.0002,2]
[350010214,1737564654905,-500.0,0.0002,2]
[350010215,1737564654915,-500.0,0.0002,2]
[350010216,1737564654925,-1689.73,0.0002,2]
[350010217,1737564654934,-500.0,0.0002,2]
[350010218,1737564654944,-948.07,0.0002,2]
[350010219,1737564654953,-500.0,0.0002,2]
[350010220,1737564654964,-1292.99,0.0002,2]
[350010221,1737564654975,-987.12,0.0002,2]
[350010222,1737564654984,-500.0,0.0002,2]
[350010223,1737564654995,-500.0,0.0002,2]
[350010224,1737564655005,-1540.0,0.0002,2]
[350010225,1737564655015,-500.0,0.0002,2]
[350010226,1737564655024,-576.36,0.0002,2]
[350010227,1737564655034,-500.0,0.0002,2]
[350010228,1737564655043,-1949.27,0.0002,2]
[350010229,1737564655053,-1084.18,0.0002,2]
[350010230,1737564655063,-553.52,0.0002,2]
[350010231,1737564655074,-668.03,0.0002,2]
[350010232,1737564655083,-933.97,0.0002,2]
[350010233,1737564655093,-1396.54,0.0002,2]
[350010234,1737564655102,-2807.04,0.0002,2]
[350010235,1737564655112,-640.64,0.0002,2]
[350010236,1737564655121,-861.9,0.0002,2]
[350010237,1737564655130,-742.82,0.0002,2]
[350010238,1737564655140,-500.0,0.0002,2]
[350010239,1737564655150,-2622.27,0.0002,2]
[350010240,1737564655160,-500.0,0.0002,2]
[350010241,1737564655169,-1147.71,0.0002,2]
[350010242,1737564655179,-500.0,0.0002,2]
[350010243,1737564655188,-1397.58,0.0002,2]
[350010244,1737564655198,-644.84,0.0002,2]
[350010245,1737564655207,-500.0,0.0002,2]
[350010246,1737564655217,-500.0,0.0002,2]
[350010247,1737564655226,-500.0,0.0002,2]
[350010248,1737564655236,-1969.95,0.0002,2]
[350010249,1737564655246,-1623.55,0.0002,2]
[350010250,1737564655255,-1125.49,0.0002,2]
[350010251,1737564655264,-988.97,0.0002,2]
[350010252,1737564655274,-500.0,0.0002,2]
[350010253,1737564655283,-388.53881184,0.0002,2]
[350010254,1737564655293,-1383.41,0.0002,2]
[350010255,1737564655304,-3375.42,0.0002,2]
[350010256,1737564655314,-933.59,0.0002,2]
[350010257,1737564655325,-500.0,0.0002,2]
[350010258,1737564655335,-674.84,0.0002,2]
[350010259,1737564655345,-788.35,0.0002,2]
[350010260,1737564655354,-2196.11,0.0002,2]
[350010261,1737564655364,-1102.3,0.0002,2]
[350010262,1737564655374,-802.14,0.0002,2]
[350010263,1737564655383,-500.0,0.0002,2]
[350010264,1737564655393,-2637.93,0.0002,2]
[350010265,1737564655403,-1505.78,0.0002,2]
[350010266,1737564655412,-500.0,0.0002,2]
[350010267,1737564655422,-417.78689012,0.0002,2]
[350010268,1737564655431,-994.03,0.0002,2]
[350010269,1737564655441,-637.51,0.0002,2]
[350010270,1737564655450,-866.11,0.0002,2]
[350010271,1737564655459,-524.7,0.0002,2]
[350010272,1737564655470,-537.98,0.0002,2]
[350010273,1737564655480,-709.66,0.0002,2]
[350010274,1737564655490,-500.0,0.0002,2]
[350010275,1737564655500,-500.0,0.0002,2]
[350010276,1737564655509,-1296.18,0.0002,2]
[350010277,1737564655519,-1221.77,0.0002,2]
[350010278,1737564655528,-500.0,0.0002,2]
[350010279,1737564655537,-1308.26,0.0002,2]
[350010280,1737564655547,-1266.64,0.0002,2]
[350010281,1737564655556,-500.0,0.0002,2]
[350010282,1737564655567,-933.28,0.0002,2]
[350010283,1737564655577,-500.0,0.0002,2]
[350010284,1737564655586,-500.0,0.0002,2]
[350010285,1737564655595,-2952.64,0.0002,2]
[350010286,1737564655604,-929.73,0.0002,2]
[350010287,1737564655614,-817.08,0.0002,2]
[350010288,1737564655623,-522.56,0.0002,2]
[350010289,1737564655632,-1594.75,0.0002,2]
[350010290,1737564655641,-500.0,0.0002,2]
[350010291,1737564655651,-500.0,0.0002,2]
[350010292,1737564655660,-1319.68,0.0002,2]
[350010293,1737564655670,-500.0,0.0002,2]
[350010294,1737564655679,-943.47,0.0002,2]
[350010295,1737564655688,-556.38,0.0002,2]
[350010296,1737564655698,-979.95,0.0002,2]
[350010297,1737564655708,-2180.0,0.0002,2]
[350010298,1737564655718,-500.0,0.0002,2]
[350010299,1737564655728,-500.0,0.0002,2]
[350010300,1737564655738,-500.0,0.0002,2]
[350010301,1737564655747,-599.54,0.0002,2]
[350010302,1737564655757,-506.05,0.0002,2]
[350010303,1737564655766,-616.56,0.0002,2]
[350010304,1737564655776,-703.23,0.0002,2]
[350010305,1737564655785,-1469.11,0.0002,2]
[350010306,1737564655794,-500.0,0.0002,2]
[350010307,1737564655804,-500.0,0.0002,2]
[350010308,1737564655813,-500.0,0.0002,2]
[350010309,1737564655824,-500.0,0.0002,2]
[350010310,1737564655834,-500.0,0.0002,2]
[350010311,1737564655843,-500.0,0.0002,2]
[350010312,1737564655852,-1622.79,0.0002,2]
[350010313,1737564655861,-563.14,0.0002,2]
[350010314,1737564655871,-500.0,0.0002,2]
[350010315,1737564655880,-2613.81,0.0002,2]
[350010316,1737564655893,-904.26,0.0002,2]
[350010317,1737564655903,-548.46,0.0002,2]
[350010318,1737564655912,-931.41,0.0002,2]
[350010319,1737564655921,-500.0,0.0002,2]
[350010320,1737564655930,-2218.6,0.0002,2]
[350010321,1737564655939,-150.0,0.00020007,2]
[350010322,1737564655948,-924.0006285,0.00020019,2]
[350010323,1737564655958,-677.58006963,0.00020019,2]
[350010324,1737564655967,-582.87467083,0.00020038,2]
[350010325,1737564655977,-150.0,0.0002006,2]
[350010326,1737564655987,-42705.4712179,0.00020073,2]
[350010327,1737564655996,-150.0,0.00020085,2]
[350010328,1737564656006,-150.0,0.0002009,2]
[350010329,1737564656015,-150.0,0.00020136,2]
[350010330,1737564656025,-582.87467083,0.00020141,2]
[350010331,1737564656034,-150.0,0.00020156,2]
[350010332,1737564656044,-150.0,0.00020185,2]
[350010333,1737564656054,-169.71,0.00020187,2]
[350010334,1737564656064,-150.0,0.00020198,2]
[350010335,1737564656074,-150.0,0.00020203,2]
[350010336,1737564656083,-3000.0,0.0002021,2]
[350010337,1737564656093,-222.60568085,0.00020218,2]
[350010338,1737564656103,-150.62,0.00020219,2]
[350010339,1737564656113,-229.05081253,0.00020232,2]
[350010340,1737564656126,-582.87467083,0.00020245,2]
[350010341,1737564656136,-150.0,0.00020247,2]
[350010342,1737564656146,-971.44,0.00020252,2]
[350010343,1737564656156,-500.0,0.00020273,2]
[350010344,1737564656165,-500.0,0.00020273,2]
[350010345,1737564656175,-500.0,0.00020273,2]
[350010346,1737564656185,-500.0,0.00020273,2]
[350010347,1737564656195,-500.0,0.00020273,2]
[350010348,1737564656205,-500.0,0.00020273,2]
[350010349,1737564656216,-500.0,0.00020273,2]
[350010350,1737564656226,-500.0,0.00020273,2]
[350010351,1737564656236,-500.0,0.00020273,2]
[350010352,1737564656246,-500.0,0.00020273,2]
[350010353,1737564656256,-700.16,0.00020273,2]
[350010354,1737564656266,-653.57,0.00020273,2]
[350010355,1737564656276,-500.0,0.00020273,2]
[350010356,1737564656286,-500.0,0.00020273,2]
[350010357,1737564656296,-501.2,0.00020273,2]
[350010358,1737564656306,-578.29,0.00020273,2]
[350010359,1737564656315,-815.2,0.00020273,2]
[350010360,1737564656325,-500.0,0.00020273,2]
[350010361,1737564656335,-500.0,0.00020273,2]
[350010362,1737564656345,-500.0,0.00020273,2]
[350010363,1737564656355,-553.14121323,0.00020273,2]
[350010364,1737564656365,-500.0,0.00020273,2]
[350010365,1737564656375,-500.0,0.00020273,2]
[350010366,1737564656384,-500.0,0.00020273,2]
[350010367,1737564656394,-500.0,0.00020273,2]
[350010368,1737564656403,-597.93,0.00020273,2]
[350010369,1737564656413,-500.0,0.00020273,2]
[350010370,1737564656593,-568.16,0.00020273,2]
[350010371,1737564656603,-586.59827524,0.00020273,2]
[350010372,1737564656613,-500.0,0.00020273,2]
[350010373,1737564656622,-500.0,0.00020273,2]
[350010374,1737564656631,-500.0,0.00020273,2]
[350010375,1737564656641,-693.59,0.00020273,2]
[350010376,1737564656651,-774.01,0.00020273,2]
[350010377,1737564656661,-500.0,0.00020273,2]
[350010378,1737564656670,-500.0,0.00020273,2]
[350010379,1737564656679,-311.07881244,0.00020273,2]
[350010380,1737564656689,-678.729105,0.00020273,2]
[350010381,1737564656699,-643.99,0.00020273,2]
[350010382,1737564656708,-500.0,0.00020273,2]
[350010383,1737564656718,-500.0,0.00020273,2]
[350010384,1737564656728,-419.50210444,0.00020273,2]
[350010385,1737564656738,-500.0,0.00020273,2]
[350010386,1737564656748,-921.053606,0.00020273,2]
[350010387,1737564656758,-500.0,0.00020273,2]
[350010388,1737564656767,-500.0,0.00020273,2]
[350010389,1737564656777,-530.18,0.00020273,2]
[350010390,1737564656787,-500.0,0.00020273,2]
[350010391,1737564656797,-500.0,0.00020273,2]
[350010392,1737564656807,-500.0,0.00020273,2]
[350010393,1737564656817,-500.0,0.00020273,2]
[350010394,1737564656829,-500.0,0.00020273,2]
[350010395,1737564656840,-500.0,0.00020273,2]
[350010396,1737564656849,-500.0,0.00020273,2]
[350010397,1737564656859,-500.0,0.00020273,2]
[350010398,1737564656868,-500.0,0.00020273,2]
[350010399,1737564656878,-500.0,0.00020273,2]
[350010400,1737564656891,-855.78,0.00020273,2]
[350010401,1737564656901,-500.0,0.00020273,2]
[350010402,1737564656910,-709.74,0.00020273,2]
[350010403,1737564656920,-500.0,0.00020273,2]
[350010404,1737564656929,-826.55,0.00020273,2]
[350010405,1737564656939,-500.0,0.00020273,2]
[350010406,1737564656948,-500.0,0.00020273,2]
[350010407,1737564656957,-500.0,0.00020273,2]
[350010408,1737564656967,-662.96,0.00020273,2]
[350010409,1737564656976,-679.12,0.00020273,2]
[350010410,1737564656986,-500.0,0.00020273,2]
[350010411,1737564656996,-500.0,0.00020273,2]
[350010412,1737564657005,-512.16,0.00020273,2]
[350010413,1737564657014,-500.0,0.00020273,2]
[350010414,1737564657024,-1005.12,0.00020273,2]
[350010415,1737564657033,-500.0,0.00020273,2]
[350010416,1737564657042,-500.0,0.00020273,2]
[350010417,1737564657051,-698.09,0.00020273,2]
[350010418,1737564657061,-628.59,0.00020273,2]
[350010419,1737564657072,-539.62,0.00020273,2]
[350010420,1737564657081,-500.0,0.00020273,2]
[350010421,1737564657090,-150.0,0.00020273,2]
[350010422,1737564657100,-500.0,0.00020273,2]
[350010423,1737564657109,-740.64,0.00020273,2]
[350010424,1737564657119,-500.0,0.00020273,2]
[350010425,1737564657128,-960.26,0.00020273,2]
[350010426,1737564657137,-932.4,0.00020273,2]
[350010427,1737564657146,-776.07,0.00020273,2]
[350010428,1737564657156,-500.0,0.00020273,2]
[350010429,1737564657165,-500.0,0.00020273,2]
[350010430,1737564657174,-500.0,0.00020273,2]
[350010431,1737564657184,-880.8,0.00020273,2]
[350010432,1737564657193,-500.0,0.00020273,2]
[350010433,1737564657202,-375.38694558,0.00020273,2]
[350010434,1737564657211,-500.0,0.00020273,2]
[350010435,1737564657220,-827.35,0.00020273,2]
[350010436,1737564657229,-984.49,0.00020273,2]
[350010437,1737564657239,-675.84,0.00020273,2]
[350010438,1737564657249,-624.4,0.00020273,2]
[350010439,1737564657258,-533.95,0.00020273,2]
[350010440,1737564657267,-251.49,0.00020273,2]
[350010441,1737564657276,-798.72,0.00020273,2]
[350010442,1737564657286,-851.17,0.00020273,2]
[350010443,1737564657296,-754.56,0.00020273,2]
[350010444,1737564657306,-500.0,0.00020273,2]
[350010445,1737564657316,-500.0,0.00020273,2]
[350010446,1737564657327,-940.6,0.00020273,2]